bitfinex/quotes_SOLUSD_20240727
["timestamp","ask_amount","ask_price","bid_price","bid_amount"]
[1722108430688,5.5121,181.42,181.36,22.1785]
[1722108431091,5.5117,181.44,181.37,5.5135]
[1722108431466,18.6,181.46,181.36,16.6648]
[1722108432068,5.5117,181.44,181.37,5.5135]
[1722108432268,38.6,181.46,181.36,16.6648]
[1722108432480,5.5126,181.41,181.36,16.6648]
[1722108432789,38.6,181.46,181.36,16.6648]
[1722108432790,5.5123,181.42,181.36,16.6648]
[1722108433089,5.5126,181.41,181.36,16.6648]
[1722108433299,0.961178,181.43,181.36,22.1786]
[1722108433973,0.961178,181.43,181.31,23.0346]
[1722108434486,5.5132,181.38,181.32,5.5151]
[1722108434674,5.5129,181.39,181.32,5.5151]
[1722108434866,5.5126,181.41,181.34,5.5144]
[1722108435066,5.512,181.42,181.36,5.5137]
[1722108436167,5.512,181.42,181.34,5.5142]
[1722108436500,5.512,181.42,181.35,5.5139]
[1722108436796,5.512,181.42,181.36,5.5138]
[1722108437373,19.561178,181.43,181.31,23.0346]
[1722108437374,0.961178,181.43,181.31,23.0346]
[1722108437718,5.512,181.42,181.36,5.5136]
[1722108438489,0.961178,181.43,181.37,5.5135]
[1722108438692,6.473078,181.43,181.37,5.5135]
[1722108438888,5.5113,181.45,181.38,5.5131]
[1722108439107,5.5118,181.43,181.36,5.5135]
[1722108439399,39.56067947,181.46,181.32,45.0]
[1722108439574,5.5126,181.4,181.34,5.5144]
[1722108440168,5.5126,181.4,181.33,5.5147]
[1722108440589,5.5126,181.4,181.34,5.5144]
[1722108441787,20.0,181.41,181.31,16.6648]
[1722108441970,5.5135,181.38,181.32,5.515]
[1722108442173,5.5135,181.38,181.31,22.1801]
[1722108442386,5.5142,181.35,181.31,16.6648]
[1722108442581,5.5142,181.35,181.29,5.5158]
[1722108442783,5.5145,181.34,181.27,16.6648]
[1722108443070,5.5145,181.34,181.28,5.516]
[1722108443481,30.0,181.37,181.27,16.6648]
[1722108444807,30.0,181.37,181.31,5.5151]
[1722108445169,5.5135,181.38,181.32,5.5149]
[1722108445688,29.6987,181.42,181.28,45.0]
[1722108445893,5.5124,181.41,181.29,1.81763673]
[1722108446098,5.5124,181.41,181.35,5.514]
[1722108446479,5.5128,181.4,181.34,5.5144]
[1722108446806,5.5128,181.4,181.35,5.514]
[1722108446972,5.5123,181.41,181.35,5.514]
[1722108448503,5.5127,181.4,181.34,5.5144]
[1722108448880,5.5123,181.42,181.35,5.5141]
[1722108449303,5.5124,181.41,181.35,5.5141]
[1722108449803,5.5126,181.4,181.35,5.5141]
[1722108451100,5.5126,181.4,181.34,5.5144]
[1722108452590,5.513,181.39,181.34,5.5144]
[1722108453996,5.513,181.39,181.29,1.64763673]
[1722108454206,5.513,181.39,181.29,21.64763673]
[1722108454506,5.513,181.39,181.3,45.0]
[1722108455300,5.513,181.39,181.34,5.5144]
[1722108455512,13.782,181.4,181.29,1.64763673]
[1722108455694,52.382,181.4,181.29,5.516]
[1722108455876,5.5145,181.34,181.28,5.5162]
[1722108456811,29.9341,181.37,181.27,16.6648]
[1722108457105,5.5154,181.31,181.22,16.5253]
[1722108457318,5.5154,181.31,181.25,5.5171]
[1722108457609,6.5129,181.35,181.22,16.5253]
[1722108457784,6.5129,181.35,181.28,5.5162]
[1722108457983,5.5145,181.34,181.28,5.5162]
[1722108458287,5.5141,181.36,181.29,5.516]
[1722108458492,5.5143,181.35,181.3,5.5156]
[1722108459094,5.5143,181.35,181.29,5.5159]
[1722108459303,5.5145,181.34,181.28,5.5162]
[1722108461387,5.5142,181.35,181.29,5.5159]
[1722108462326,0.96113574,181.37,181.33,5.5147]
[1722108462497,5.5127,181.4,181.34,5.5142]
[1722108462693,6.5129,181.45,181.34,5.5142]
[1722108462694,0.96095743,181.43,181.34,5.5142]
[1722108463211,5.5125,181.41,181.31,16.5253]
[1722108463395,5.5125,181.41,181.35,5.5141]
[1722108463893,5.5127,181.4,181.35,5.5141]
[1722108464094,5.5127,181.4,181.34,5.5144]
[1722108464684,5.5127,181.4,181.35,5.5141]
[1722108466214,5.5124,181.41,181.35,5.5141]
[1722108466707,5.5121,181.42,181.32,45.0]
[1722108466911,6.47275743,181.43,181.37,5.5134]
[1722108467208,5.5121,181.42,181.37,5.5134]
[1722108467403,5.5121,181.42,181.36,5.5138]
[1722108467901,0.96095743,181.43,181.34,5.5142]
[1722108468590,5.5129,181.4,181.34,5.5142]
[1722108469112,0.96095743,181.43,181.32,45.0]
[1722108469113,33.34055743,181.43,181.32,5.5148]
[1722108469405,5.5132,181.38,181.32,5.515]
[1722108469714,5.5139,181.36,181.31,16.5253]
[1722108469897,5.5135,181.38,181.32,5.5151]
[1722108470409,33.34055743,181.43,181.31,16.5253]
[1722108470615,5.5132,181.38,181.32,5.5148]
[1722108470907,5.513,181.39,181.33,5.5147]
[1722108471727,5.5127,181.4,181.34,5.5144]
[1722108472095,0.96095743,181.43,181.31,16.5253]
[1722108472411,5.5126,181.4,181.35,5.5141]
[1722108473126,0.96095743,181.43,181.32,45.0]
[1722108473127,6.47265743,181.43,181.32,45.0]
[1722108473302,12.25978098,181.46,181.4,5.5126]
[1722108473617,12.25978098,181.46,181.32,45.0]
[1722108473618,5.5117,181.43,181.38,5.513]
[1722108474316,5.5121,181.42,181.36,5.5135]
[1722108474492,5.5121,181.42,181.37,5.5135]
[1722108474889,5.5118,181.43,181.37,5.5135]
[1722108475112,0.96074766,181.46,181.32,45.0]
[1722108475413,5.5111,181.46,181.41,5.5123]
[1722108475613,5.5115,181.44,181.39,5.5129]
[1722108476191,0.96061992,181.46,181.33,21.64727327]
[1722108476395,5.5111,181.46,181.41,5.5123]
[1722108478504,6.96466949,181.49,181.39,16.5475]
[1722108478505,5.5102,181.48,181.39,16.5475]
[1722108479304,5.5102,181.48,181.43,5.5115]
[1722108479516,5.5095,181.51,181.45,5.5108]
[1722108479722,5.5093,181.51,181.45,5.5108]
[1722108480014,12.47337179,181.53,181.47,5.5104]
[1722108480602,0.96037179,181.53,181.46,5.5108]
[1722108480797,5.509,181.52,181.46,5.5108]
[1722108481217,5.509,181.52,181.39,16.5475]
[1722108481218,19.773,181.57,181.4,18.6]
[1722108481420,5.5084,181.54,181.48,5.5102]
[1722108481721,5.5088,181.53,181.48,5.5102]
[1722108482889,5.5084,181.54,181.48,5.5102]
[1722108483298,5.5081,181.55,181.49,5.5097]
[1722108483507,5.5081,181.55,181.42,16.5475]
[1722108483713,5.5081,181.55,181.48,5.51]
[1722108483919,5.5088,181.53,181.48,5.51]
[1722108484126,5.5091,181.52,181.47,5.5105]
[1722108484306,0.96020043,181.56,181.47,5.5105]
[1722108484307,5.5087,181.53,181.47,5.5105]
[1722108485110,0.96020043,181.56,181.43,1.64636534]
[1722108485312,5.509,181.52,181.43,46.64636534]
[1722108485628,5.5086,181.54,181.48,5.5101]
[1722108485801,5.5088,181.53,181.48,5.5101]
[1722108486000,5.509,181.52,181.47,5.5105]
[1722108486315,5.509,181.52,181.43,46.64636534]
[1722108486514,18.6,181.55,181.45,5.5111]
[1722108487210,5.5093,181.51,181.45,5.5111]
[1722108487441,5.509,181.52,181.43,46.64636534]
[1722108487612,5.509,181.52,181.46,5.5108]
[1722108488431,18.6,181.55,181.48,5.5099]
[1722108488627,18.6,181.55,181.47,5.5105]
[1722108488820,5.5087,181.53,181.47,5.5105]
[1722108489226,5.5087,181.53,181.48,5.5102]
[1722108489537,5.5087,181.53,181.47,5.5105]
[1722108490518,18.6,181.55,181.46,5.5108]
[1722108492004,5.509,181.52,181.46,5.5108]
[1722108492705,0.96020043,181.56,181.43,46.64636534]
[1722108492706,5.5085,181.54,181.43,46.64636534]
[1722108493820,5.5091,181.52,181.47,5.5105]
[1722108494020,0.96020043,181.56,181.47,5.5105]
[1722108494021,5.5087,181.53,181.47,5.5105]
[1722108495625,5.5087,181.53,181.48,5.5101]
[1722108495837,5.5084,181.54,181.48,5.5101]
[1722108496407,0.96020043,181.56,181.49,5.5098]
[1722108496607,5.5083,181.55,181.5,5.5095]
[1722108497438,0.96020043,181.56,181.5,5.5095]
[1722108497625,6.46810043,181.56,181.5,5.5095]
[1722108497965,6.46810043,181.56,181.51,5.5092]
[1722108498813,5.5082,181.55,181.49,5.5096]
[1722108500112,16.89807348,181.59,181.47,5.5102]
[1722108500333,18.6,181.57,181.45,8.23098387]
[1722108500539,5.51,181.49,181.45,1.64618387]
[1722108500838,5.5096,181.5,181.45,5.5111]
[1722108501047,5.509,181.52,181.47,5.5103]
[1722108501334,5.5093,181.51,181.46,5.5108]
[1722108501524,5.5099,181.49,181.44,5.5114]
[1722108501730,5.5099,181.49,181.43,5.5117]
[1722108501932,5.5099,181.49,181.44,5.5113]
[1722108502239,18.6,181.51,181.42,16.5475]
[1722108502418,5.5106,181.47,181.42,22.0595]
[1722108502729,5.5101,181.49,181.44,5.5113]
[1722108503538,5.5096,181.5,181.44,5.5113]
[1722108503737,21.26,181.51,181.44,5.5113]
[1722108503738,5.5099,181.49,181.44,5.5113]
[1722108505048,26.7695,181.51,181.44,5.5113]
[1722108505215,26.7695,181.51,181.42,22.0592]
[1722108505216,21.26,181.51,181.42,22.0592]
[1722108505619,5.5103,181.48,181.42,22.0592]
[1722108506747,21.26,181.52,181.39,6.5848]
[1722108507041,5.5105,181.47,181.41,5.5122]
[1722108507242,5.5105,181.47,181.39,6.5848]
[1722108507243,5.5102,181.49,181.42,5.5119]
[1722108507545,5.5102,181.48,181.42,5.5119]
[1722108508546,5.5114,181.45,181.38,15.7758]
[1722108508731,5.5112,181.45,181.39,5.5128]
[1722108509126,5.5109,181.46,181.4,5.5124]
[1722108509741,5.5105,181.47,181.42,5.5119]
[1722108509926,21.26,181.49,181.38,15.7758]
[1722108510131,5.5111,181.45,181.38,15.7758]
[1722108510741,21.26,181.49,181.41,5.512]
[1722108511336,21.26,181.49,181.38,15.7758]
[1722108511337,21.26,181.49,181.43,5.5117]
[1722108511540,5.5104,181.48,181.42,5.512]
[1722108511743,21.26,181.49,181.38,15.7758]
[1722108512224,21.26,181.49,181.41,5.512]
[1722108512419,5.5108,181.47,181.41,5.512]
[1722108513345,29.5848,181.51,181.38,15.7758]
[1722108513520,29.5848,181.51,181.39,45.0]
[1722108513838,5.5106,181.47,181.41,5.5122]
[1722108514427,5.5109,181.46,181.41,5.5122]
[1722108515931,5.5111,181.45,181.39,50.5127]
[1722108516248,5.5111,181.45,181.4,5.5126]
[1722108516442,5.5108,181.46,181.4,5.5126]
[1722108517030,21.26,181.52,181.39,45.0]
[1722108517528,5.5108,181.47,181.41,5.5121]
[1722108518335,5.5108,181.47,181.42,5.5118]
[1722108518654,5.5108,181.46,181.39,45.0]
[1722108519439,5.5108,181.46,181.39,50.5126]
[1722108519754,5.5111,181.45,181.39,45.0]
[1722108520131,5.5108,181.46,181.39,45.0]
[1722108520529,5.5108,181.46,181.41,5.5123]
[1722108520730,21.26,181.49,181.38,21.2887]
[1722108520943,35.0354,181.49,181.38,21.2887]
[1722108521148,5.512,181.42,181.38,15.7758]
[1722108521351,5.5117,181.43,181.38,15.7758]
[1722108521748,5.5117,181.43,181.38,21.2889]
[1722108521933,5.5114,181.44,181.38,15.7758]
[1722108522169,5.5118,181.43,181.38,15.7758]
[1722108523027,13.7754,181.49,181.38,15.7758]
[1722108523028,21.26,181.49,181.38,15.7758]
[1722108523627,5.5111,181.46,181.4,5.5126]
[1722108523831,5.5113,181.45,181.4,5.5126]
[1722108524049,5.5113,181.45,181.39,5.5129]
[1722108525244,5.5115,181.44,181.39,5.5129]
[1722108526445,5.5112,181.45,181.39,5.5129]
[1722108527376,21.26,181.49,181.38,15.7758]
[1722108527535,5.5102,181.48,181.43,5.5117]
[1722108527733,0.96023991,181.5,181.43,5.5117]
[1722108527941,5.5101,181.49,181.43,5.5117]
[1722108528432,5.5103,181.48,181.42,5.512]
[1722108528657,5.5106,181.47,181.42,5.512]
[1722108528955,5.5102,181.49,181.43,5.5116]
[1722108529664,5.5103,181.48,181.43,5.5116]
[1722108529881,0.96023991,181.5,181.44,5.5114]
[1722108530668,0.96023991,181.5,181.42,6.1728]
[1722108530874,5.509,181.53,181.48,5.5101]
[1722108531247,5.509,181.53,181.43,61.5492]
[1722108531248,0.95999063,181.55,181.46,5.5106]
[1722108531584,0.95999063,181.55,181.43,61.5492]
[1722108533356,5.509,181.52,181.46,5.5108]
[1722108533682,5.5093,181.51,181.45,5.5111]
[1722108534062,5.509,181.53,181.43,61.5492]
[1722108534869,5.5084,181.54,181.43,61.5492]
[1722108535076,5.5084,181.54,181.48,5.51]
[1722108535378,5.5088,181.53,181.48,5.51]
[1722108535676,0.95999063,181.55,181.43,61.5492]
[1722108535857,6.46819063,181.55,181.5,5.5096]
[1722108536254,6.46819063,181.55,181.44,0.17]
[1722108536664,6.46819063,181.55,181.49,5.5098]
[1722108537979,5.5085,181.54,181.49,5.5098]
[1722108538161,5.5085,181.54,181.48,5.5101]
[1722108538649,0.95999063,181.55,181.46,5.5105]
[1722108538887,0.95999063,181.55,181.45,5.5111]
[1722108539368,5.5096,181.5,181.44,5.5114]
[1722108539571,5.5093,181.51,181.45,5.511]
[1722108540080,5.5093,181.51,181.43,16.5492]
[1722108540581,6.5099,181.54,181.43,16.5492]
[1722108540985,5.51,181.49,181.43,16.5492]
[1722108541157,21.26,181.53,181.43,16.5492]
[1722108541158,35.0325,181.53,181.43,16.5492]
[1722108541487,35.0325,181.53,181.43,22.0608]
[1722108541488,5.5102,181.48,181.43,22.0608]
[1722108541787,35.0325,181.53,181.43,16.5492]
[1722108542091,15.428,181.52,181.38,16.5492]
[1722108542776,15.428,181.52,181.41,5.5121]
[1722108542777,5.5106,181.47,181.41,5.5121]
[1722108543280,5.5106,181.47,181.42,5.5119]
[1722108543459,5.5101,181.49,181.44,5.5113]
[1722108544486,5.5104,181.48,181.42,5.5118]
[1722108545781,5.5104,181.48,181.43,5.5116]
[1722108546579,5.5105,181.47,181.42,5.512]
[1722108548571,5.5109,181.46,181.41,5.5123]
[1722108548769,5.5106,181.47,181.38,16.5492]
[1722108548996,21.26,181.5,181.42,5.5119]
[1722108549356,5.5096,181.5,181.45,5.511]
[1722108549581,21.26,181.53,181.42,5.512]
[1722108550089,5.5102,181.48,181.43,5.5115]
[1722108550387,21.26,181.53,181.43,5.5115]
[1722108550388,5.5099,181.49,181.43,5.5115]
[1722108550675,21.26,181.5,181.39,45.0]
[1722108550891,21.26,181.5,181.38,16.5492]
[1722108551065,21.26,181.5,181.41,5.5123]
[1722108551269,0.95999048,181.49,181.41,5.5123]
[1722108551466,0.95999048,181.49,181.38,16.5492]
[1722108552191,5.5108,181.46,181.38,16.5492]
[1722108552361,5.5108,181.46,181.39,45.0]
[1722108553164,5.5108,181.46,181.41,5.5122]
[1722108553513,5.5121,181.42,181.35,5.5138]
[1722108553672,5.5127,181.4,181.34,5.5144]
[1722108553871,5.5129,181.39,181.34,5.5144]
[1722108554072,5.5133,181.38,181.24,22.8958]
[1722108554282,35.0395,181.43,181.25,1.64800035]
[1722108554584,5.513,181.39,181.33,5.5148]
[1722108555386,5.5133,181.38,181.25,1.64800035]
[1722108555611,5.5129,181.4,181.33,5.5148]
[1722108556272,5.5131,181.39,181.33,5.5148]
[1722108556869,35.0395,181.43,181.25,1.64800035]
[1722108557097,35.0395,181.43,181.25,21.64800035]
[1722108557970,5.5133,181.38,181.32,5.5149]
[1722108558175,36.0008,181.46,181.32,16.3702]
[1722108558371,22.2237,181.46,181.33,51.8656]
[1722108558692,5.5114,181.45,181.39,5.5127]
[1722108558867,5.5114,181.44,181.39,5.5127]
[1722108559196,5.5119,181.43,181.37,5.5133]
[1722108559375,5.5121,181.42,181.37,5.5133]
[1722108559570,22.2237,181.46,181.35,5.514]
[1722108559781,5.5123,181.42,181.33,6.5256]
[1722108560074,5.5126,181.41,181.33,6.5256]
[1722108560479,5.5117,181.44,181.38,5.5132]
[1722108560990,5.5118,181.43,181.38,5.5132]
[1722108561171,5.5118,181.43,181.37,5.5135]
[1722108562565,5.5115,181.44,181.38,5.5132]
[1722108563564,5.5118,181.43,181.38,5.5132]
[1722108563766,5.5118,181.43,181.37,5.5135]
[1722108563969,5.5123,181.41,181.32,16.3702]
[1722108564187,5.5123,181.41,181.33,45.0]
[1722108564689,5.5123,181.41,181.32,16.3702]
[1722108565009,35.0389,181.44,181.32,16.3702]
[1722108565492,5.5124,181.41,181.35,5.514]
[1722108565695,5.5128,181.4,181.35,5.514]
[1722108565867,35.0389,181.44,181.32,16.3702]
[1722108566071,5.513,181.39,181.33,5.5145]
[1722108566271,5.5126,181.41,181.35,5.5141]
[1722108566480,5.5126,181.4,181.34,5.5144]
[1722108566990,5.5124,181.41,181.36,5.5138]
[1722108567570,35.0389,181.44,181.32,16.3702]
[1722108569193,55.0389,181.44,181.32,16.3702]
[1722108569377,45.0,181.43,181.32,16.3702]
[1722108569575,45.0,181.43,181.32,21.885]
[1722108569576,5.5133,181.38,181.32,21.885]
[1722108569771,35.0389,181.44,181.32,16.3702]
[1722108570076,5.5135,181.38,181.32,21.8853]
[1722108570380,5.513,181.39,181.33,5.5146]
[1722108571183,5.513,181.39,181.33,5.5145]
[1722108571496,5.513,181.39,181.34,5.5144]
[1722108573173,5.513,181.39,181.33,5.5147]
[1722108573997,5.5127,181.4,181.35,5.5141]
[1722108574301,5.5127,181.4,181.34,5.5144]
[1722108575202,6.47283764,181.42,181.32,16.3702]
[1722108575374,5.5124,181.41,181.35,5.5139]
[1722108576390,5.5128,181.4,181.35,5.5139]
[1722108577481,5.5124,181.41,181.35,5.5139]
[1722108578198,5.5126,181.4,181.35,5.5139]
[1722108578601,5.513,181.39,181.33,50.5145]
[1722108582409,5.513,181.39,181.34,5.5143]
[1722108583802,13.7787,181.44,181.33,45.0]
[1722108583984,5.5124,181.41,181.36,5.5138]
[1722108584486,5.5124,181.41,181.33,45.0]
[1722108585193,5.5127,181.4,181.33,45.0]
[1722108585396,5.5123,181.42,181.37,5.5134]
[1722108586492,0.96066885,181.45,181.33,45.0]
[1722108586493,0.96066885,181.45,181.42,5.5119]
[1722108586807,13.7748,181.5,181.38,23.0956]
[1722108586808,5.5111,181.46,181.38,23.0956]
[1722108587013,5.5112,181.45,181.38,23.0956]
[1722108587184,5.5115,181.44,181.39,5.5129]
[1722108588818,5.512,181.42,181.38,16.502]
[1722108589230,5.5118,181.43,181.38,16.502]
[1722108589691,5.5118,181.43,181.38,22.0152]
[1722108590910,5.5115,181.44,181.38,22.0152]
[1722108591334,13.7762,181.48,181.38,16.502]
[1722108591611,5.5115,181.44,181.38,16.502]
[1722108591788,13.7762,181.48,181.38,16.502]
[1722108593320,5.5114,181.44,181.39,5.5127]
[1722108594691,5.5112,181.45,181.4,5.5125]
[1722108595712,5.5117,181.43,181.38,22.0151]
[1722108595923,5.5117,181.43,181.26,16.57]
[1722108595924,20.0,181.38,181.26,15.7285]
[1722108596214,21.27,181.4,181.09,272.22259772]
[1722108596215,5.5157,181.31,181.24,5.5175]
[1722108596564,21.27,181.32,181.2,15.7285]
[1722108596699,5.516,181.29,181.23,5.5178]
[1722108597490,5.5157,181.3,181.24,5.5174]
[1722108598496,5.5157,181.3,181.25,5.5172]
[1722108598725,41.4038,181.34,181.25,5.5172]
[1722108598905,5.73504761,181.37,181.32,5.5149]
[1722108599221,5.5128,181.4,181.34,5.5144]
[1722108599519,5.5124,181.41,181.35,5.5141]
[1722108599898,5.5127,181.4,181.34,5.5144]
[1722108600097,5.5127,181.4,181.29,15.7285]
[1722108600098,5.5127,181.4,181.35,5.5141]
[1722108600529,6.3476,181.44,181.29,15.7285]
[1722108600823,5.5114,181.45,181.39,5.5128]
[1722108600995,27.6176,181.49,181.38,5.5132]
[1722108600996,5.5115,181.44,181.38,5.5132]
[1722108601192,5.5115,181.44,181.39,5.5129]
[1722108601399,5.5111,181.45,181.39,5.5129]
[1722108601700,5.5118,181.43,181.3,66.98754585]
[1722108601895,5.5118,181.43,181.31,1.64745498]
[1722108602112,5.5118,181.43,181.32,0.34]
[1722108602321,5.5118,181.43,181.33,1.64727327]
[1722108602513,5.5118,181.43,181.34,0.34]
[1722108602722,27.6176,181.49,181.34,1.98718244]
[1722108602723,13.7767,181.47,181.34,1.98718244]
[1722108602910,5.512,181.43,181.34,1.98718244]
[1722108603518,0.96040931,181.5,181.36,15.7285]
[1722108603724,5.5104,181.48,181.41,5.5121]
[1722108603911,5.5104,181.48,181.37,46.98690998]
[1722108603912,5.5104,181.48,181.42,5.5118]
[1722108607035,0.96040931,181.5,181.37,46.98690998]
[1722108607199,5.5111,181.46,181.37,46.81690998]
[1722108608318,5.5105,181.48,181.41,5.5122]
[1722108608518,6.47030931,181.5,181.43,5.5114]
[1722108608718,12.08281778,181.54,181.38,0.17]
[1722108608917,5.5096,181.51,181.45,5.5108]
[1722108609707,5.5096,181.5,181.45,5.5108]
[1722108610432,5.5096,181.5,181.38,0.17]
[1722108610433,5.5099,181.49,181.44,5.5114]
[1722108611428,5.5099,181.49,181.38,0.17]
[1722108611429,5.5103,181.48,181.38,0.17]
[1722108611733,5.5099,181.49,181.44,5.5112]
[1722108611930,5.5102,181.48,181.43,5.5117]
[1722108612824,5.5099,181.5,181.43,5.5117]
[1722108613015,5.5101,181.49,181.43,5.5117]
[1722108613810,5.5101,181.49,181.44,5.5114]
[1722108614347,12.08281778,181.54,181.46,5.5108]
[1722108615124,5.73521778,181.54,181.46,5.5108]
[1722108615330,5.73521778,181.54,181.45,15.1061]
[1722108615331,5.73521778,181.54,181.48,5.5102]
[1722108615527,16.5459,181.57,181.48,5.5102]
[1722108616220,5.5087,181.53,181.48,5.5102]
[1722108616606,16.5459,181.57,181.48,5.5102]
[1722108617002,41.6687,181.58,181.5,5.5096]
[1722108617003,5.5083,181.55,181.5,5.5096]
[1722108617217,5.5079,181.56,181.51,5.5093]
[1722108617411,13.7657,181.61,181.51,5.5093]
[1722108617412,5.5075,181.57,181.51,5.5093]
[1722108617814,5.5072,181.58,181.45,15.1061]
[1722108618030,5.5072,181.58,181.52,5.509]
[1722108618227,5.5076,181.57,181.5,5.5093]
[1722108618541,21.27,181.61,181.46,1.98609315]
[1722108618713,21.27,181.61,181.47,1.64600244]
[1722108618916,5.5075,181.58,181.52,5.509]
[1722108619115,21.27,181.61,181.5,5.5093]
[1722108619311,21.27,181.61,181.47,1.64600244]
[1722108619624,21.27,181.61,181.49,5.5099]
[1722108619837,5.5081,181.55,181.49,5.5099]
[1722108620321,21.27,181.58,181.47,7.15630244]
[1722108620639,5.509,181.52,181.48,45.0]
[1722108620820,5.509,181.52,181.47,7.15630244]
[1722108621021,5.5093,181.51,181.46,45.0]
[1722108621232,5.5093,181.51,181.45,15.1061]
[1722108621422,5.509,181.53,181.45,15.1061]
[1722108621734,5.509,181.53,181.48,5.5102]
[1722108621910,5.509,181.52,181.46,50.5105]
[1722108622106,5.509,181.52,181.47,5.5104]
[1722108622330,5.5086,181.54,181.48,45.0]
[1722108622711,21.27,181.58,181.46,5.5106]
[1722108622921,41.27,181.58,181.46,5.5106]
[1722108623424,5.5089,181.53,181.47,5.5103]
[1722108623623,21.27,181.58,181.48,5.5101]
[1722108623624,5.5083,181.55,181.48,5.5101]
[1722108623833,5.5083,181.55,181.49,5.5099]
[1722108624010,5.5083,181.55,181.46,45.0]
[1722108624011,26.7774,181.58,181.51,5.509]
[1722108624217,5.5074,181.58,181.51,5.509]
[1722108624424,5.5074,181.58,181.52,5.5089]
[1722108624829,5.5075,181.57,181.52,5.5089]
[1722108625143,5.5073,181.58,181.46,45.0]
[1722108625431,5.5075,181.57,181.47,1.98600244]
[1722108625640,5.5072,181.58,181.47,1.98600244]
[1722108625851,6.63,181.62,181.47,21.98600244]
[1722108626044,27.9,181.62,181.52,5.5087]
[1722108626341,5.5074,181.58,181.52,5.5087]
[1722108627433,5.5076,181.57,181.51,5.5093]
[1722108627637,5.5078,181.56,181.51,5.5093]
[1722108628826,27.9,181.62,181.47,21.81600244]
[1722108628827,35.0375,181.59,181.47,21.81600244]
[1722108629029,5.5084,181.54,181.49,5.5097]
[1722108629733,26.778,181.56,181.47,1.64600244]
[1722108629926,26.778,181.56,181.51,5.5092]
[1722108630529,5.508,181.56,181.51,5.5092]
[1722108631069,5.5074,181.58,181.52,5.5089]
[1722108631238,21.27,181.59,181.47,1.64600244]
[1722108631447,26.7769,181.59,181.54,5.5084]
[1722108631660,5.5069,181.59,181.54,5.5084]
[1722108632129,5.5072,181.58,181.53,5.5086]
[1722108632331,5.5069,181.59,181.54,5.5083]
[1722108632533,0.95994457,181.6,181.48,0.17]
[1722108632722,33.4083,181.62,181.54,5.5083]
[1722108632915,5.5068,181.6,181.54,5.5083]
[1722108633231,33.4083,181.62,181.49,1.64582105]
[1722108633430,27.9,181.62,181.5,0.17]
[1722108633635,5.5068,181.6,181.54,5.5081]
[1722108633824,5.5069,181.59,181.53,5.5087]
[1722108635742,5.5069,181.59,181.54,5.5084]
[1722108636743,5.5064,181.61,181.55,5.5078]
[1722108637241,5.5067,181.6,181.55,5.5078]
[1722108637824,5.5067,181.6,181.51,15.2711]
[1722108638020,5.5067,181.6,181.52,45.0]
[1722108638664,5.5067,181.6,181.54,5.5081]
[1722108639825,5.5063,181.61,181.55,45.0]
[1722108640029,5.5063,181.61,181.52,45.0]
[1722108640747,6.70257371,181.63,181.53,6.3755]
[1722108640952,6.2709185,181.64,181.58,5.5069]
[1722108641130,6.2709185,181.64,181.59,5.5068]
[1722108641525,6.2709185,181.64,181.58,5.5071]
[1722108642139,0.7653185,181.64,181.59,45.0]
[1722108642358,0.7653185,181.64,181.59,60.2711]
[1722108642876,0.7653185,181.64,181.61,5.506]